[Event "Late-Titled-Tuesday-Blitz-January-23-2024"]
[Site "Chess.com"]
[Date "2024.01.23"]
[Round "10"]
[White "Kaslask"]
[Black "shirovin"]
[Result "1-0"]
[WhiteElo "2311"]
[BlackElo "2027"]
[TimeControl "180+1"]
[EndTime "15:51:24 PST"]
[Termination "Kaslask won by resignation"]

1. c4 {[%clk 0:03:00.9]} 1... e5 {[%clk 0:02:58.8]} 2. Nc3 {[%clk 0:03:00.4]}
2... Bb4 {[%clk 0:02:57.8]} 3. g3 {[%clk 0:02:58.9]} 3... Bxc3 {[%clk
0:02:57.3]} 4. bxc3 {[%clk 0:02:57.9]} 4... d6 {[%clk 0:02:57.9]} 5. Bg2 {[%clk
0:02:56.5]} 5... f5 {[%clk 0:02:58.4]} 6. d3 {[%clk 0:02:55.5]} 6... Nf6 {[%clk
0:02:57.4]} 7. Nh3 {[%clk 0:02:55]} 7... O-O {[%clk 0:02:56.4]} 8. O-O {[%clk
0:02:54.9]} 8... Qe8 {[%clk 0:02:51.5]} 9. Rb1 {[%clk 0:02:54.1]} 9... Nc6
{[%clk 0:02:42]} 10. f4 {[%clk 0:02:52.5]} 10... e4 {[%clk 0:02:13.1]} 11. Nf2
{[%clk 0:02:50.1]} 11... Rb8 {[%clk 0:02:06.4]} 12. d4 {[%clk 0:02:45.1]} 12...
Na5 {[%clk 0:01:50.6]} 13. d5 {[%clk 0:02:30.7]} 13... Nxc4 {[%clk 0:01:44.6]}
14. Qd4 {[%clk 0:02:27.6]} 14... Nb6 {[%clk 0:01:43.1]} 15. c4 {[%clk
0:02:26.5]} 15... Bd7 {[%clk 0:01:33.1]} 16. Nd1 {[%clk 0:02:22.2]} 16... a6
{[%clk 0:01:28.4]} 17. Ne3 {[%clk 0:02:21.7]} 17... h5 {[%clk 0:01:20.4]} 18.
Bb2 {[%clk 0:02:21.2]} 18... Qf7 {[%clk 0:01:14.8]} 19. Bh3 {[%clk 0:02:18.4]}
19... Ng4 {[%clk 0:01:13.4]} 20. Nxg4 {[%clk 0:02:06.8]} 20... hxg4 {[%clk
0:01:12.5]} 21. Bg2 {[%clk 0:02:06.8]} 21... Rfe8 {[%clk 0:01:11]} 22. e3 {[%clk
0:02:05.6]} 22... Re7 {[%clk 0:01:09.8]} 23. Rfc1 {[%clk 0:01:59.5]} 23... Qe8
{[%clk 0:01:03.4]} 24. Kf2 {[%clk 0:01:56.2]} 24... Na4 {[%clk 0:01:01.6]} 25.
Ba1 {[%clk 0:01:55.5]} 25... Nc5 {[%clk 0:01:00.7]} 26. Rh1 {[%clk 0:01:52]}
26... b5 {[%clk 0:00:56]} 27. h3 {[%clk 0:01:49.6]} 27... gxh3 {[%clk
0:00:48.4]} 28. Rxh3 {[%clk 0:01:48.9]} 28... bxc4 {[%clk 0:00:48.8]} 29. Rbh1
{[%clk 0:01:48]} 29... Nd3+ {[%clk 0:00:39.9]} 30. Ke2 {[%clk 0:01:43.1]} 30...
Qg6 {[%clk 0:00:30.3]} 31. Rh8+ {[%clk 0:01:36]} 31... Kf7 {[%clk 0:00:29.6]}
32. Rxb8 {[%clk 0:01:35.7]} 32... Qg4+ {[%clk 0:00:24.8]} 33. Kd2 {[%clk
0:01:34.7]} 33... Qxg3 {[%clk 0:00:24.2]} 34. Qxg7+ {[%clk 0:01:27.8]} 34...
Qxg7 {[%clk 0:00:21]} 35. Bxg7 {[%clk 0:01:28.3]} 35... Kxg7 {[%clk 0:00:20.4]}
36. Rhh8 {[%clk 0:01:21.8]} 36... Ba4 {[%clk 0:00:15.9]} 37. Rbg8+ {[%clk
0:01:19.3]} 37... Kf7 {[%clk 0:00:15.7]} 38. Rf8+ {[%clk 0:01:19.3]} 38... Kg7
{[%clk 0:00:15]} 39. Rhg8+ {[%clk 0:01:19.3]} 39... Kh7 {[%clk 0:00:14.5]} 40.
Bh3 {[%clk 0:01:19.1]} 40... Rg7 {[%clk 0:00:14]} 41. Bxf5+ {[%clk 0:01:18]}
41... Kh6 {[%clk 0:00:11.7]} 42. Rh8+ {[%clk 0:01:18.1]} 1-0

[Event "Late-Titled-Tuesday-Blitz-January-23-2024"]
[Site "Chess.com"]
[Date "2024.01.23"]
[Round "10"]
[White "ChessFighter_2011"]
[Black "The_Machine04"]
[Result "1-0"]
[WhiteElo "2939"]
[BlackElo "2719"]
[TimeControl "180+1"]
[EndTime "15:51:27 PST"]
[Termination "ChessFighter_2011 won on time"]

1. e4 {[%clk 0:03:00.9]} 1... d6 {[%clk 0:02:59.2]} 2. d4 {[%clk 0:03:00.8]}
2... Nf6 {[%clk 0:02:57.9]} 3. Nc3 {[%clk 0:02:58.9]} 3... e5 {[%clk 0:02:52.8]}
4. Nf3 {[%clk 0:02:57.4]} 4... Nbd7 {[%clk 0:02:52.2]} 5. Bc4 {[%clk 0:02:56.9]}
5... Be7 {[%clk 0:02:50]} 6. O-O {[%clk 0:02:50.8]} 6... c6 {[%clk 0:02:49.6]}
7. a4 {[%clk 0:02:50.6]} 7... h6 {[%clk 0:02:45.8]} 8. dxe5 {[%clk 0:02:50.8]}
8... dxe5 {[%clk 0:02:40.3]} 9. a5 {[%clk 0:02:50.4]} 9... Qc7 {[%clk
0:02:40.1]} 10. Qe2 {[%clk 0:02:50.8]} 10... Nf8 {[%clk 0:02:39.1]} 11. Rd1
{[%clk 0:02:50.9]} 11... Ng6 {[%clk 0:02:37.3]} 12. h3 {[%clk 0:02:50.5]} 12...
O-O {[%clk 0:02:36.3]} 13. Be3 {[%clk 0:02:49.1]} 13... Nh5 {[%clk 0:02:28.6]}
14. Qf1 {[%clk 0:02:41.9]} 14... Nhf4 {[%clk 0:02:26.4]} 15. Kh2 {[%clk
0:02:39.9]} 15... Kh8 {[%clk 0:02:12.7]} 16. Ng1 {[%clk 0:02:38.8]} 16... f5
{[%clk 0:02:03.5]} 17. g3 {[%clk 0:02:36.3]} 17... fxe4 {[%clk 0:01:56.6]} 18.
Nxe4 {[%clk 0:02:34.2]} 18... Nd5 {[%clk 0:01:55.4]} 19. Qe2 {[%clk 0:02:32.2]}
19... Bf5 {[%clk 0:01:52.7]} 20. Bd3 {[%clk 0:02:27.3]} 20... Nxe3 {[%clk
0:01:49.4]} 21. Qxe3 {[%clk 0:02:27.3]} 21... Bb4 {[%clk 0:01:27.8]} 22. a6
{[%clk 0:02:24.6]} 22... b6 {[%clk 0:01:27.2]} 23. Nf3 {[%clk 0:02:23.4]} 23...
Rae8 {[%clk 0:01:21.3]} 24. c3 {[%clk 0:02:17.5]} 24... Be7 {[%clk 0:01:20.7]}
25. Kg2 {[%clk 0:02:11.7]} 25... Qc8 {[%clk 0:01:18.8]} 26. Ng1 {[%clk
0:02:11.6]} 26... Rf7 {[%clk 0:00:56.5]} 27. Re1 {[%clk 0:02:07.2]} 27... Ref8
{[%clk 0:00:56.1]} 28. Re2 {[%clk 0:02:07.1]} 28... c5 {[%clk 0:00:41.1]} 29.
Bc4 {[%clk 0:02:05.8]} 29... Be6 {[%clk 0:00:38.6]} 30. Bxe6 {[%clk 0:02:04.7]}
30... Qxe6 {[%clk 0:00:39.5]} 31. Qd3 {[%clk 0:02:01.3]} 31... c4 {[%clk
0:00:38.2]} 32. Qc2 {[%clk 0:02:01.6]} 32... Qc6 {[%clk 0:00:35.8]} 33. Kh2
{[%clk 0:02:01.2]} 33... Rf5 {[%clk 0:00:29.9]} 34. Rf1 {[%clk 0:01:59.5]} 34...
b5 {[%clk 0:00:24.5]} 35. Ra1 {[%clk 0:01:51.9]} 35... Bc5 {[%clk 0:00:23.6]}
36. Qd2 {[%clk 0:01:37.2]} 36... Qb6 {[%clk 0:00:17.2]} 37. Rf1 {[%clk 0:01:36]}
37... Be7 {[%clk 0:00:12.6]} 38. Qd7 {[%clk 0:01:33.9]} 38... Qxa6 {[%clk
0:00:09.4]} 39. Rd2 {[%clk 0:01:29.2]} 39... R5f7 {[%clk 0:00:08.3]} 40. Qg4
{[%clk 0:01:28.7]} 40... Qc6 {[%clk 0:00:05.4]} 41. h4 {[%clk 0:01:28.6]} 41...
Kh7 {[%clk 0:00:01.4]} 42. Nh3 {[%clk 0:01:27.9]} 42... Rf5 {[%clk 0:00:01.2]}
43. h5 {[%clk 0:01:27.6]} 1-0

[Event "Late-Titled-Tuesday-Blitz-January-23-2024"]
[Site "Chess.com"]
[Date "2024.01.23"]
[Round "10"]
[White "TV27"]
[Black "IsaqueGoncalvesSanto"]
[Result "1-0"]
[WhiteElo "2174"]
[BlackElo "1797"]
[TimeControl "180+1"]
[EndTime "15:51:28 PST"]
[Termination "TV27 won by resignation"]

1. e4 {[%clk 0:02:57.7]} 1... e6 {[%clk 0:02:58.2]} 2. d4 {[%clk 0:02:56.8]}
2... d5 {[%clk 0:02:58.1]} 3. Nc3 {[%clk 0:02:57.1]} 3... Bb4 {[%clk 0:02:57.7]}
4. e5 {[%clk 0:02:56.7]} 4... Qd7 {[%clk 0:02:57.8]} 5. a3 {[%clk 0:02:51]} 5...
Bxc3+ {[%clk 0:02:57.2]} 6. bxc3 {[%clk 0:02:50.7]} 6... b6 {[%clk 0:02:56.9]}
7. Qg4 {[%clk 0:02:44.6]} 7... f5 {[%clk 0:02:56.3]} 8. Qh5+ {[%clk 0:02:34.5]}
8... Qf7 {[%clk 0:02:55.5]} 9. Qxf7+ {[%clk 0:02:32.6]} 9... Kxf7 {[%clk
0:02:54.8]} 10. c4 {[%clk 0:02:32.1]} 10... Bb7 {[%clk 0:02:42.6]} 11. Nf3
{[%clk 0:02:31.3]} 11... h6 {[%clk 0:02:40.1]} 12. Bb2 {[%clk 0:02:25.6]} 12...
g5 {[%clk 0:02:39.2]} 13. O-O-O {[%clk 0:02:24.2]} 13... Ne7 {[%clk 0:02:37.6]}
14. h4 {[%clk 0:02:17.3]} 14... g4 {[%clk 0:02:36.9]} 15. Nd2 {[%clk 0:02:16.8]}
15... Nbc6 {[%clk 0:02:25.3]} 16. Nb3 {[%clk 0:02:11.4]} 16... a5 {[%clk
0:02:12.6]} 17. a4 {[%clk 0:02:10.5]} 17... Nb4 {[%clk 0:02:03.4]} 18. c5 {[%clk
0:02:08.4]} 18... bxc5 {[%clk 0:01:38.4]} 19. Nxc5 {[%clk 0:02:07.6]} 19... Bc6
{[%clk 0:01:37.9]} 20. Bc3 {[%clk 0:02:05.2]} 20... Rhb8 {[%clk 0:01:34.9]} 21.
Kd2 {[%clk 0:01:57.3]} 21... Na2 {[%clk 0:01:08]} 22. Ra1 {[%clk 0:01:48.8]}
22... Nxc3 {[%clk 0:01:04.6]} 23. Kxc3 {[%clk 0:01:48.6]} 23... Rb4 {[%clk
0:00:56.8]} 24. Bd3 {[%clk 0:01:47.7]} 24... Rab8 {[%clk 0:00:55]} 25. Na6
{[%clk 0:01:45.9]} 25... R8b7 {[%clk 0:00:24.7]} 26. Nxb4 {[%clk 0:01:44.1]}
26... axb4+ {[%clk 0:00:25]} 27. Kb3 {[%clk 0:01:43]} 27... Bd7 {[%clk
0:00:23.7]} 28. Rhd1 {[%clk 0:01:24.2]} 28... Nc6 {[%clk 0:00:23.3]} 29. Bb5
{[%clk 0:01:23.8]} 29... Na5+ {[%clk 0:00:21.3]} 30. Kxb4 {[%clk 0:01:22.6]}
30... Nc4 {[%clk 0:00:20.1]} 31. Kc5 {[%clk 0:01:14.5]} 31... c6 {[%clk
0:00:19.5]} 32. Bxc4 {[%clk 0:01:02.7]} 32... dxc4 {[%clk 0:00:17.5]} 33. Rdb1
{[%clk 0:00:56.9]} 1-0

[Event "Late-Titled-Tuesday-Blitz-January-23-2024"]
[Site "Chess.com"]
[Date "2024.01.23"]
[Round "10"]
[White "UnTucopalaTimba"]
[Black "McCarthyStone"]
[Result "0-1"]
[WhiteElo "1924"]
[BlackElo "2338"]
[TimeControl "180+1"]
[EndTime "15:51:29 PST"]
[Termination "McCarthyStone won by resignation"]

1. e4 {[%clk 0:02:59.4]} 1... e5 {[%clk 0:02:56.6]} 2. Nf3 {[%clk 0:02:59.2]}
2... d6 {[%clk 0:02:56.5]} 3. d4 {[%clk 0:02:56.6]} 3... exd4 {[%clk 0:02:57.4]}
4. Nxd4 {[%clk 0:02:56.5]} 4... Nf6 {[%clk 0:02:57]} 5. Nc3 {[%clk 0:02:54.9]}
5... Be7 {[%clk 0:02:56.5]} 6. Bc4 {[%clk 0:02:54.6]} 6... O-O {[%clk
0:02:56.3]} 7. O-O {[%clk 0:02:53.8]} 7... a6 {[%clk 0:02:55.8]} 8. a4 {[%clk
0:02:53.2]} 8... b6 {[%clk 0:02:54.6]} 9. Re1 {[%clk 0:02:48.6]} 9... Bb7 {[%clk
0:02:53.9]} 10. Nf5 {[%clk 0:02:48.6]} 10... Nbd7 {[%clk 0:02:46.5]} 11. Bg5
{[%clk 0:02:40]} 11... h6 {[%clk 0:02:28.5]} 12. Bxh6 {[%clk 0:02:26]} 12...
gxh6 {[%clk 0:02:27.5]} 13. Qf3 {[%clk 0:02:25.4]} 13... Kh7 {[%clk 0:02:11.7]}
14. Qf4 {[%clk 0:02:06.6]} 14... Ng8 {[%clk 0:02:02.9]} 15. Nd5 {[%clk
0:01:49.3]} 15... Bg5 {[%clk 0:02:00.9]} 16. Qf3 {[%clk 0:01:44.5]} 16... Ne5
{[%clk 0:02:00.4]} 17. Qh3 {[%clk 0:01:37.8]} 17... Nxc4 {[%clk 0:01:53.5]} 18.
f4 {[%clk 0:01:34.8]} 18... Bxd5 {[%clk 0:01:52.8]} 19. fxg5 {[%clk 0:01:32.7]}
19... Be6 {[%clk 0:01:42.7]} 20. gxh6 {[%clk 0:01:28.8]} 20... Ne5 {[%clk
0:01:36.3]} 21. Rf1 {[%clk 0:01:15.1]} 21... Qg5 {[%clk 0:01:33.2]} 22. Ra3
{[%clk 0:01:01.5]} 22... Qg4 {[%clk 0:01:25.6]} 23. Qe3 {[%clk 0:00:48.7]} 23...
Rae8 {[%clk 0:01:17.2]} 24. h3 {[%clk 0:00:45]} 24... Qg6 {[%clk 0:01:15.4]} 25.
Qf4 {[%clk 0:00:25.9]} 25... Nxh6 {[%clk 0:01:08.8]} 26. Rg3 {[%clk 0:00:22.2]}
26... Bxf5 {[%clk 0:00:57.6]} 27. exf5 {[%clk 0:00:20.1]} 27... Qf6 {[%clk
0:00:54.2]} 28. c3 {[%clk 0:00:16.6]} 28... Rg8 {[%clk 0:00:53.6]} 29. Rxg8
{[%clk 0:00:14.8]} 29... Rxg8 {[%clk 0:00:54.5]} 30. Kh1 {[%clk 0:00:14.7]}
30... Qg5 {[%clk 0:00:53.2]} 31. Qf2 {[%clk 0:00:14]} 31... Qg3 {[%clk
0:00:52.2]} 32. Qxg3 {[%clk 0:00:12.4]} 32... Rxg3 {[%clk 0:00:51.5]} 0-1

[Event "Late-Titled-Tuesday-Blitz-January-23-2024"]
[Site "Chess.com"]
[Date "2024.01.23"]
[Round "10"]
[White "Inepton_Fermion"]
[Black "jamengrand"]
[Result "0-1"]
[WhiteElo "2418"]
[BlackElo "2279"]
[TimeControl "180+1"]
[EndTime "15:51:31 PST"]
[Termination "jamengrand won by resignation"]

1. e4 {[%clk 0:03:00.9]} 1... e5 {[%clk 0:02:59.4]} 2. Nf3 {[%clk 0:02:57.8]}
2... Nc6 {[%clk 0:02:59.5]} 3. Bc4 {[%clk 0:02:57.2]} 3... Nf6 {[%clk
0:02:59.1]} 4. O-O {[%clk 0:02:48.4]} 4... Nxe4 {[%clk 0:02:58.9]} 5. Re1 {[%clk
0:02:46.7]} 5... d5 {[%clk 0:02:58.7]} 6. Bb5 {[%clk 0:02:40.8]} 6... Bc5 {[%clk
0:02:56.4]} 7. d4 {[%clk 0:02:26.2]} 7... exd4 {[%clk 0:02:55.6]} 8. Nxd4 {[%clk
0:02:24.5]} 8... O-O {[%clk 0:02:55.7]} 9. Bxc6 {[%clk 0:02:18.7]} 9... bxc6
{[%clk 0:02:54.4]} 10. Be3 {[%clk 0:02:12.6]} 10... Qf6 {[%clk 0:02:41.5]} 11.
Nc3 {[%clk 0:02:05.9]} 11... Re8 {[%clk 0:01:42.9]} 12. Qd3 {[%clk 0:01:44.6]}
12... Rb8 {[%clk 0:01:07.7]} 13. f3 {[%clk 0:01:32.7]} 13... Nxc3 {[%clk
0:00:54.7]} 14. bxc3 {[%clk 0:00:58.9]} 14... Bd7 {[%clk 0:00:47.3]} 15. Nb3
{[%clk 0:00:43.1]} 15... Bd6 {[%clk 0:00:46.3]} 16. Bxa7 {[%clk 0:00:32.6]}
16... Bxh2+ {[%clk 0:00:43.6]} 17. Kxh2 {[%clk 0:00:30.3]} 17... Qh4+ {[%clk
0:00:43.9]} 18. Kg1 {[%clk 0:00:28.6]} 18... Rxe1+ {[%clk 0:00:44.6]} 19. Rxe1
{[%clk 0:00:28.3]} 19... Qxe1+ {[%clk 0:00:44.8]} 20. Kh2 {[%clk 0:00:29.2]}
20... Re8 {[%clk 0:00:38.4]} 21. Nd2 {[%clk 0:00:18.2]} 21... Re6 {[%clk
0:00:26.1]} 22. g3 {[%clk 0:00:13.8]} 22... Re2+ {[%clk 0:00:24.7]} 0-1

[Event "Late-Titled-Tuesday-Blitz-January-23-2024"]
[Site "Chess.com"]
[Date "2024.01.23"]
[Round "10"]
[White "rasmussvane"]
[Black "Durarbayli"]
[Result "1/2-1/2"]
[WhiteElo "2971"]
[BlackElo "2864"]
[TimeControl "180+1"]
[EndTime "15:51:39 PST"]
[Termination "Game drawn by agreement"]

1. Nf3 {[%clk 0:02:56.4]} 1... c5 {[%clk 0:02:59.3]} 2. c4 {[%clk 0:02:51.3]}
2... b6 {[%clk 0:02:59.3]} 3. g3 {[%clk 0:02:50.8]} 3... Bb7 {[%clk 0:02:59.8]}
4. Bg2 {[%clk 0:02:51.1]} 4... Nf6 {[%clk 0:03:00.4]} 5. O-O {[%clk 0:02:51.1]}
5... e6 {[%clk 0:03:01.1]} 6. Nc3 {[%clk 0:02:51.1]} 6... Be7 {[%clk 0:03:01]}
7. d4 {[%clk 0:02:51.1]} 7... cxd4 {[%clk 0:03:01]} 8. Qxd4 {[%clk 0:02:52]}
8... d6 {[%clk 0:03:00.1]} 9. Bg5 {[%clk 0:02:48.8]} 9... a6 {[%clk 0:03:00.2]}
10. Bxf6 {[%clk 0:02:48.2]} 10... Bxf6 {[%clk 0:02:59.7]} 11. Qf4 {[%clk
0:02:48.4]} 11... Bxc3 {[%clk 0:02:53.8]} 12. bxc3 {[%clk 0:02:48.1]} 12... Bxf3
{[%clk 0:02:14.4]} 13. Bxf3 {[%clk 0:02:39.3]} 13... Ra7 {[%clk 0:02:14.3]} 14.
Rfd1 {[%clk 0:02:32.4]} 14... Rd7 {[%clk 0:02:13.2]} 15. Rab1 {[%clk 0:02:26]}
15... O-O {[%clk 0:02:10.6]} 16. Qd4 {[%clk 0:02:25.5]} 16... b5 {[%clk
0:02:06.9]} 17. cxb5 {[%clk 0:02:23.2]} 17... axb5 {[%clk 0:02:07.8]} 18. Rxb5
{[%clk 0:02:23.8]} 18... d5 {[%clk 0:02:08.2]} 19. Rdb1 {[%clk 0:02:01.7]} 19...
Nc6 {[%clk 0:02:07.5]} 20. Qf4 {[%clk 0:01:58]} 20... Qa8 {[%clk 0:01:36.5]} 21.
a4 {[%clk 0:01:48.4]} 21... h6 {[%clk 0:01:26.9]} 22. c4 {[%clk 0:01:21.9]}
22... Qxa4 {[%clk 0:01:13.8]} 23. cxd5 {[%clk 0:01:21.6]} 23... Qxf4 {[%clk
0:01:14.7]} 24. gxf4 {[%clk 0:01:22.4]} 24... Nd4 {[%clk 0:01:12.5]} 25. dxe6
{[%clk 0:00:57.4]} 25... Nxf3+ {[%clk 0:01:05.9]} 26. exf3 {[%clk 0:00:57.1]}
26... fxe6 {[%clk 0:01:06.8]} 27. Rb8 {[%clk 0:00:34.9]} 27... Rxb8 {[%clk
0:01:03]} 28. Rxb8+ {[%clk 0:00:34.2]} 28... Kf7 {[%clk 0:01:03.9]} 29. Kg2
{[%clk 0:00:34.1]} 29... Rd5 {[%clk 0:01:02.9]} 30. Rb4 {[%clk 0:00:31.8]} 30...
Kf6 {[%clk 0:01:02.1]} 31. Re4 {[%clk 0:00:32]} 31... Ra5 {[%clk 0:01:00]} 32.
Rc4 {[%clk 0:00:29.1]} 32... Rb5 {[%clk 0:00:59.5]} 33. Ra4 {[%clk 0:00:29.1]}
33... Rc5 {[%clk 0:00:58.4]} 34. Re4 {[%clk 0:00:29.2]} 34... Ra5 {[%clk
0:00:58.4]} 35. Kg3 {[%clk 0:00:29.2]} 35... Rb5 {[%clk 0:00:58]} 36. h3 {[%clk
0:00:26]} 36... Ra5 {[%clk 0:00:57.8]} 37. Re1 {[%clk 0:00:26.3]} 37... Rb5
{[%clk 0:00:57.9]} 38. Kg4 {[%clk 0:00:25.4]} 38... Ra5 {[%clk 0:00:57.7]} 39.
Kg3 {[%clk 0:00:22.6]} 39... Rb5 {[%clk 0:00:57.7]} 40. Kg2 {[%clk 0:00:22.9]}
40... Ra5 {[%clk 0:00:58.1]} 41. Re2 {[%clk 0:00:22.4]} 41... Rb5 {[%clk
0:00:58.4]} 42. Re4 {[%clk 0:00:22.3]} 42... Ra5 {[%clk 0:00:58.4]} 43. Kf1
{[%clk 0:00:22.4]} 43... Ra1+ {[%clk 0:00:57.6]} 44. Kg2 {[%clk 0:00:21.7]}
44... Ra5 {[%clk 0:00:58.4]} 45. Rb4 {[%clk 0:00:18.5]} 1/2-1/2

[Event "Late-Titled-Tuesday-Blitz-January-23-2024"]
[Site "Chess.com"]
[Date "2024.01.23"]
[Round "10"]
[White "K_A_S_T_O_R"]
[Black "KNVB"]
[Result "1-0"]
[WhiteElo "2906"]
[BlackElo "2782"]
[TimeControl "180+1"]
[EndTime "15:51:40 PST"]
[Termination "K_A_S_T_O_R won on time"]

1. e4 {[%clk 0:03:00.9]} 1... b6 {[%clk 0:02:59.4]} 2. d4 {[%clk 0:03:00]} 2...
Bb7 {[%clk 0:02:59.4]} 3. Bd3 {[%clk 0:03:00.6]} 3... e6 {[%clk 0:02:58.5]} 4.
Nf3 {[%clk 0:03:01.1]} 4... d5 {[%clk 0:02:58.2]} 5. Nbd2 {[%clk 0:02:56.8]}
5... Nf6 {[%clk 0:02:55.1]} 6. Qe2 {[%clk 0:02:55.4]} 6... Nxe4 {[%clk 0:02:55]}
7. Nxe4 {[%clk 0:02:55.7]} 7... dxe4 {[%clk 0:02:55.9]} 8. Bxe4 {[%clk
0:02:56.3]} 8... Bxe4 {[%clk 0:02:56.8]} 9. Qxe4 {[%clk 0:02:56.8]} 9... Qd5
{[%clk 0:02:57.6]} 10. Qe2 {[%clk 0:02:56.9]} 10... Bd6 {[%clk 0:02:46.8]} 11.
c4 {[%clk 0:02:49.7]} 11... Qf5 {[%clk 0:02:43.2]} 12. O-O {[%clk 0:02:42.8]}
12... O-O {[%clk 0:02:43.3]} 13. b3 {[%clk 0:02:39.9]} 13... Nd7 {[%clk
0:02:37.9]} 14. Bb2 {[%clk 0:02:40.2]} 14... Rfe8 {[%clk 0:02:36.4]} 15. Rad1
{[%clk 0:02:40.5]} 15... e5 {[%clk 0:02:13]} 16. dxe5 {[%clk 0:02:29.5]} 16...
Nxe5 {[%clk 0:02:11.2]} 17. Nd4 {[%clk 0:02:17.1]} 17... Qg6 {[%clk 0:01:23.3]}
18. Rfe1 {[%clk 0:02:14.8]} 18... f6 {[%clk 0:01:15.3]} 19. Qe4 {[%clk
0:01:45.9]} 19... Qxe4 {[%clk 0:00:34.2]} 20. Rxe4 {[%clk 0:01:45.3]} 20... Nd3
{[%clk 0:00:09.5]} 21. Rxe8+ {[%clk 0:01:44.5]} 21... Rxe8 {[%clk 0:00:10.4]}
22. Bc3 {[%clk 0:01:44.8]} 22... Bb4 {[%clk 0:00:08.3]} 23. Bxb4 {[%clk
0:01:35.8]} 23... Nxb4 {[%clk 0:00:09.2]} 24. a3 {[%clk 0:01:36]} 24... Nd3
{[%clk 0:00:02.8]} 25. Kf1 {[%clk 0:01:31.9]} 25... Nc5 {[%clk 0:00:02.1]} 26.
b4 {[%clk 0:01:30.6]} 26... Ne4 {[%clk 0:00:02.3]} 27. Nb5 {[%clk 0:01:26.3]}
27... c6 {[%clk 0:00:01.6]} 28. Nxa7 {[%clk 0:01:26]} 28... Ra8 {[%clk
0:00:01.6]} 29. Rd7 {[%clk 0:01:22]} 29... Nd2+ {[%clk 0:00:01.8]} 30. Rxd2
{[%clk 0:01:21.2]} 30... Rxa7 {[%clk 0:00:02.5]} 31. Rd3 {[%clk 0:01:21.8]}
31... Kf7 {[%clk 0:00:03.2]} 32. Ke2 {[%clk 0:01:21.5]} 32... Ke6 {[%clk
0:00:03.9]} 33. Kd2 {[%clk 0:01:20.5]} 33... h5 {[%clk 0:00:03]} 34. h3 {[%clk
0:01:19]} 34... g5 {[%clk 0:00:03.2]} 35. g3 {[%clk 0:01:16.8]} 35... Rh7 {[%clk
0:00:02.1]} 36. Kc3 {[%clk 0:01:15.7]} 36... h4 {[%clk 0:00:02.2]} 37. g4 {[%clk
0:01:14.2]} 37... Ke5 {[%clk 0:00:02]} 38. Rf3 {[%clk 0:01:13.6]} 38... Rd7
{[%clk 0:00:01.7]} 39. Rf5+ {[%clk 0:01:12.9]} 39... Ke6 {[%clk 0:00:01.6]} 40.
f4 {[%clk 0:01:12.5]} 40... gxf4 {[%clk 0:00:01.5]} 41. Rxf4 {[%clk 0:01:12.7]}
41... Rd1 {[%clk 0:00:01.7]} 42. Rf3 {[%clk 0:01:13.2]} 42... Rg1 {[%clk
0:00:01.6]} 43. Kd4 {[%clk 0:01:12.2]} 1-0

[Event "Late-Titled-Tuesday-Blitz-January-23-2024"]
[Site "Chess.com"]
[Date "2024.01.23"]
[Round "10"]
[White "katharinareinecke"]
[Black "JaackCamel"]
[Result "0-1"]
[WhiteElo "1979"]
[BlackElo "2149"]
[TimeControl "180+1"]
[EndTime "15:51:46 PST"]
[Termination "JaackCamel won on time"]

1. d4 {[%clk 0:03:00.9]} 1... d5 {[%clk 0:02:51.9]} 2. c4 {[%clk 0:03:00.8]}
2... e6 {[%clk 0:02:51.3]} 3. Nf3 {[%clk 0:02:56.7]} 3... c6 {[%clk 0:02:51.3]}
4. g3 {[%clk 0:02:56.9]} 4... dxc4 {[%clk 0:02:50.8]} 5. Bg2 {[%clk 0:02:56.7]}
5... b5 {[%clk 0:02:50.9]} 6. O-O {[%clk 0:02:56.3]} 6... Bb7 {[%clk 0:02:50.8]}
7. b3 {[%clk 0:02:53.5]} 7... cxb3 {[%clk 0:02:48.7]} 8. axb3 {[%clk 0:02:52.6]}
8... c5 {[%clk 0:02:39.1]} 9. Bb2 {[%clk 0:02:45.6]} 9... Nf6 {[%clk 0:02:36.4]}
10. Na3 {[%clk 0:02:39.9]} 10... a6 {[%clk 0:02:32.4]} 11. Qc2 {[%clk
0:02:20.9]} 11... Nbd7 {[%clk 0:02:30.3]} 12. Ne5 {[%clk 0:01:44.1]} 12... Bxg2
{[%clk 0:02:24.4]} 13. Kxg2 {[%clk 0:01:43.9]} 13... Rc8 {[%clk 0:02:16.7]} 14.
Qd2 {[%clk 0:01:35.3]} 14... Be7 {[%clk 0:02:01.9]} 15. dxc5 {[%clk 0:01:25.8]}
15... Nxc5 {[%clk 0:01:54.4]} 16. Qxd8+ {[%clk 0:01:19.1]} 16... Bxd8 {[%clk
0:01:49.7]} 17. b4 {[%clk 0:01:07.9]} 17... Na4 {[%clk 0:01:46.1]} 18. Bd4
{[%clk 0:01:04.7]} 18... O-O {[%clk 0:01:42.1]} 19. Rfc1 {[%clk 0:00:59.2]}
19... Be7 {[%clk 0:01:35.7]} 20. Nc2 {[%clk 0:00:43.2]} 20... Rfd8 {[%clk
0:01:28.4]} 21. e3 {[%clk 0:00:41.5]} 21... Nd5 {[%clk 0:01:22.7]} 22. Nd3
{[%clk 0:00:25.7]} 22... h6 {[%clk 0:01:14.7]} 23. Nce1 {[%clk 0:00:15.2]} 23...
Kf8 {[%clk 0:01:10]} 24. Nc2 {[%clk 0:00:14.5]} 24... f6 {[%clk 0:01:03.6]} 25.
e4 {[%clk 0:00:14.8]} 25... Ndb6 {[%clk 0:00:53.2]} 26. Nc5 {[%clk 0:00:13.6]}
26... Nxc5 {[%clk 0:00:38.8]} 27. bxc5 {[%clk 0:00:13.6]} 27... Na4 {[%clk
0:00:37.2]} 28. Rd1 {[%clk 0:00:00.7]} 28... Kf7 {[%clk 0:00:32.6]} 0-1